fUST/lending_fUST_20240902
["ID","MTS","AMOUNT","RATE_DAILY","PERIOD"]
[336854550,1725214712810,-500.0,0.00024657,2]
[336854551,1725214712853,-502.30573955,0.00024657,2]
[336854552,1725214712901,-688.81,0.00024657,2]
[336854553,1725214712944,-500.0,0.00024657,2]
[336854554,1725214712990,-500.0,0.00024657,2]
[336854555,1725214713035,-1551.74,0.00024657,2]
[336854556,1725214713080,-500.0,0.00024657,2]
[336854557,1725214713125,-500.0,0.00024657,2]
[336854558,1725214713170,-500.0,0.00024657,2]
[336854559,1725214713216,-500.0,0.00024657,2]
[336854560,1725214713262,-1027.9,0.00024657,2]
[336854561,1725214713308,-500.0,0.00024657,2]
[336854562,1725214713354,-362.00424429,0.00024657,2]
[336854563,1725214713406,-1196.71,0.00024657,2]
[336854564,1725214713451,-1391.91,0.00024657,2]
[336854565,1725214713496,-500.0,0.00024657,2]
[336854566,1725214713541,-500.0,0.00024657,2]
[336854567,1725214713587,-567.22,0.00024657,2]
[336854568,1725214713634,-1056.08,0.00024657,2]
[336854569,1725214713678,-500.0,0.00024657,2]
[336854570,1725214713724,-2548.19,0.00024657,2]
[336854571,1725214713773,-1605.38,0.00024657,2]
[336854572,1725214713820,-325.03925116,0.00024657,2]
[336854573,1725214713868,-500.0,0.00024657,2]
[336854574,1725214713914,-500.0,0.00024657,2]
[336854575,1725214713960,-500.0,0.00024657,2]
[336854576,1725214714013,-824.47,0.00024657,2]
[336854577,1725214714059,-663.28,0.00024657,2]
[336854578,1725214714105,-500.0,0.00024657,2]
[336854579,1725214714153,-500.0,0.00024657,2]
[336854580,1725214714198,-500.0,0.00024657,2]
[336854581,1725214714243,-1629.33,0.00024657,2]
[336854582,1725214714293,-500.0,0.00024657,2]
[336854583,1725214714348,-500.0,0.00024657,2]
[336854584,1725214714397,-500.0,0.00024657,2]
[336854585,1725214714441,-500.0,0.00024657,2]
[336854586,1725214714485,-243.82111708,0.00024657,2]
[336854587,1725214714530,-1513.82,0.00024657,2]
[336854588,1725214714574,-500.0,0.00024657,2]
[336854589,1725214714618,-500.0,0.00024657,2]
[336854590,1725214714685,-500.0,0.00024657,2]
[336854591,1725214714730,-2603.64,0.00024657,2]
[336854592,1725214714775,-500.0,0.00024657,2]
[336854593,1725214714819,-869.91,0.00024657,2]
[336854594,1725214714863,-566.01,0.00024657,2]
[336854595,1725214715056,-619.65,0.00024657,2]
[336854596,1725214715101,-500.0,0.00024657,2]
[336854597,1725214715143,-500.0,0.00024657,2]
[336854598,1725214715186,-500.0,0.00024657,2]
[336854599,1725214715228,-500.0,0.00024657,2]
[336854600,1725214715268,-1211.78,0.00024657,2]
[336854601,1725214715308,-500.0,0.00024657,2]
[336854602,1725214715347,-500.0,0.00024657,2]
[336854603,1725214715386,-500.0,0.00024657,2]
[336854604,1725214715427,-559.35,0.00024657,2]
[336854605,1725214715468,-1007.72,0.00024657,2]
[336854606,1725214715509,-500.0,0.00024657,2]
[336854607,1725214715550,-698.05,0.00024657,2]
[336854608,1725214715593,-500.0,0.00024657,2]
[336854609,1725214715637,-728.81,0.00024657,2]
[336854610,1725214715681,-1597.26,0.00024657,2]
[336854611,1725214715727,-500.0,0.00024657,2]
[336854612,1725214715773,-7621.77,0.00024657,2]
[336854613,1725214715816,-500.0,0.00024657,2]
[336854614,1725214715863,-500.0,0.00024657,2]
[336854615,1725214715906,-500.0,0.00024657,2]
[336854616,1725214715951,-500.0,0.00024657,2]
[336854617,1725214715995,-500.0,0.00024657,2]
[336854618,1725214716039,-1214.82,0.00024657,2]
[336854619,1725214716085,-500.0,0.00024657,2]
[336854620,1725214716128,-500.0,0.00024657,2]
[336854621,1725214716173,-1308.39237201,0.00024657,2]
[336854623,1725214731870,186.782821,0.00014247,2]
[336854626,1725214901134,5000.0,0.0002009,2]
[336854627,1725214917004,5000.0,0.0002009,2]
[336854628,1725214932306,5000.0,0.0002009,2]
[336854629,1725214948808,5000.0,0.0002009,2]
[336854630,1725214964352,5000.0,0.0002009,2]
[336854631,1725214979619,5000.0,0.0002009,2]
[336854632,1725214995426,3387.09221435,0.0002009,2]
[336854637,1725215266443,161.801813,0.00014247,2]
[336854638,1725215321122,1410.5297035,0.00014,2]
[336854639,1725215321518,21252.43346867,0.0001,2]
[336854644,1725215346131,-186.782821,0.00020707,2]
[336854645,1725215346154,-300.0,0.00021999,2]
[336854646,1725215346176,-8506.4339456,0.00022,2]
[336854647,1725215352107,-1265.81095709,0.00022,2]
[336854689,1725215440272,-171.998839,0.00023103,2]
[336854690,1725215440282,-300.0,0.00023664,2]
[336854691,1725215440292,-24900.0,0.00023665,2]
[336854692,1725215440302,-357.647449,0.00023836,2]
[336854693,1725215440312,-153.0,0.000239,2]
[336854694,1725215440321,-834.4154305,0.0002394,2]
[336854695,1725215440330,-153.0,0.00024178,2]
[336854696,1725215440340,-153.0,0.000242,2]
[336854697,1725215440351,-207.943127,0.00024294,2]
[336854698,1725215440361,-153.0,0.00024294,2]
[336854699,1725215440371,-834.4154305,0.0002444,2]
[336854700,1725215440381,-207.6829069,0.00024512,2]
[336854701,1725215440390,-2753.77258429,0.00024547,2]
[336854702,1725215440400,-8238.61623204,0.00024647,3]
[336854703,1725215440599,-825.66,0.00024647,3]
[336854704,1725215440609,-412.83,0.00024647,3]
[336854705,1725215440620,-500.0,0.00024656,2]
[336854706,1725215440629,-342.1443251,0.00024656,2]
[336854707,1725215440640,-500.0,0.00024656,2]
[336854708,1725215440650,-3181.82406429,0.00024657,11]
[336854709,1725215440663,-500.0,0.00024657,2]
[336854710,1725215440672,-500.0,0.00024657,2]
[336854711,1725215440682,-500.0,0.00024657,2]
[336854712,1725215440693,-500.0,0.00024657,2]
[336854713,1725215440703,-500.0,0.00024657,2]
[336854714,1725215440713,-500.0,0.00024657,2]
[336854715,1725215440723,-500.0,0.00024657,2]
[336854716,1725215440735,-500.0,0.00024657,2]
[336854717,1725215440745,-500.0,0.00024657,2]
[336854718,1725215440755,-368.99011333,0.00024657,2]
[336854719,1725215440766,-500.0,0.00024657,2]
[336854720,1725215440775,-500.0,0.00024657,2]
[336854721,1725215440785,-500.0,0.00024657,2]
[336854722,1725215440797,-581.09978774,0.00024657,2]
[336854723,1725215440807,-500.0,0.00024657,2]
[336854724,1725215440816,-500.0,0.00024657,2]
[336854725,1725215440826,-500.0,0.00024657,2]
[336854726,1725215440835,-500.0,0.00024657,2]
[336854727,1725215440845,-500.0,0.00024657,2]
[336854728,1725215440855,-500.0,0.00024657,2]
[336854729,1725215440865,-500.0,0.00024657,2]
[336854730,1725215440874,-500.0,0.00024657,2]
[336854731,1725215440884,-500.0,0.00024657,2]
[336854732,1725215440894,-500.0,0.00024657,2]
[336854733,1725215440904,-500.0,0.00024657,2]
[336854734,1725215440917,-500.0,0.00024657,2]
[336854735,1725215440927,-500.0,0.00024657,2]
[336854736,1725215440936,-500.0,0.00024657,2]
[336854737,1725215440945,-500.0,0.00024657,2]
[336854738,1725215440955,-500.0,0.00024657,2]
[336854739,1725215440964,-500.0,0.00024657,2]
[336854740,1725215440974,-500.0,0.00024657,2]
[336854741,1725215440983,-500.0,0.00024657,2]
[336854742,1725215440994,-500.0,0.00024657,2]
[336854743,1725215441004,-500.0,0.00024657,2]
[336854744,1725215441014,-500.0,0.00024657,2]
[336854745,1725215441024,-500.0,0.00024657,2]
[336854746,1725215441034,-500.0,0.00024657,2]
[336854747,1725215441043,-500.0,0.00024657,2]
[336854748,1725215441053,-646.6,0.00024657,2]
[336854749,1725215441063,-501.51833889,0.00024657,2]
[336854750,1725215441073,-500.0,0.00024657,2]
[336854751,1725215441082,-784.76,0.00024657,2]
[336854752,1725215441093,-628.65773662,0.00024657,2]
[336854753,1725215441103,-414.72557276,0.00024657,2]
[336854754,1725215441113,-500.0,0.00024657,2]
[336854755,1725215441123,-502.98476496,0.00024657,2]
[336854756,1725215441132,-500.0,0.00024657,2]
[336854757,1725215441142,-500.0,0.00024657,2]
[336854758,1725215441151,-639.98416241,0.00024657,2]
[336854759,1725215441163,-500.0,0.00024657,2]
[336854760,1725215441172,-500.0,0.00024657,2]
[336854761,1725215441181,-500.0,0.00024657,2]
[336854762,1725215441191,-500.0,0.00024657,2]
[336854763,1725215441200,-500.0,0.00024657,2]
[336854764,1725215441210,-501.77420178,0.00024657,2]
[336854765,1725215441219,-687.81,0.00024657,2]
[336854766,1725215441229,-500.0,0.00024657,2]
[336854767,1725215441239,-500.0,0.00024657,2]
[336854768,1725215441248,-500.0,0.00024657,2]
[336854769,1725215441258,-500.0,0.00024657,2]
[336854770,1725215441267,-500.0,0.00024657,2]
[336854771,1725215441278,-500.0,0.00024657,2]
[336854772,1725215441287,-500.0,0.00024657,2]
[336854773,1725215441297,-500.0,0.00024657,2]
[336854774,1725215441307,-500.0,0.00024657,2]
[336854775,1725215441317,-535.17,0.00024657,2]
[336854776,1725215441327,-952.17,0.00024657,2]
[336854777,1725215441336,-500.0,0.00024657,2]
[336854778,1725215441345,-500.0,0.00024657,2]
[336854779,1725215441355,-500.0,0.00024657,2]
[336854780,1725215441365,-500.0,0.00024657,2]
[336854781,1725215441374,-500.0,0.00024657,2]
[336854782,1725215441384,-194.44568111,0.00024657,2]
[336854783,1725215441394,-500.0,0.00024657,2]
[336854784,1725215441403,-500.0,0.00024657,2]
[336854785,1725215441415,-709.86,0.00024657,2]
[336854786,1725215441424,-500.0,0.00024657,2]
[336854787,1725215441434,-176.90945779,0.00024657,2]
[336854788,1725215441444,-500.0,0.00024657,2]
[336854789,1725215441453,-500.0,0.00024657,2]
[336854790,1725215441462,-500.0,0.00024657,2]
[336854791,1725215441471,-623.83134346,0.00024657,2]
[336854792,1725215441481,-500.0,0.00024657,2]
[336854793,1725215441490,-500.0,0.00024657,2]
[336854794,1725215441499,-500.0,0.00024657,2]
[336854795,1725215441509,-752.49,0.00024657,2]
[336854796,1725215441518,-500.0,0.00024657,2]
[336854797,1725215441527,-1121.6,0.00024657,2]
[336854798,1725215441537,-392.50524189,0.00024657,2]
[336854799,1725215441547,-654.76,0.00024657,2]
[336854800,1725215441556,-500.0,0.00024657,2]
[336854801,1725215441569,-500.0,0.00024657,2]
[336854802,1725215441579,-500.0,0.00024657,2]
[336854803,1725215441588,-500.0,0.00024657,2]
[336854804,1725215441597,-500.0,0.00024657,2]
[336854805,1725215441609,-572.8584381,0.00024657,2]
[336854806,1725215441618,-500.0,0.00024657,2]
[336854807,1725215441628,-500.0,0.00024657,2]
[336854808,1725215441639,-500.0,0.00024657,2]
[336854809,1725215441649,-500.0,0.00024657,2]
[336854810,1725215441659,-500.0,0.00024657,2]
[336854811,1725215441669,-500.0,0.00024657,2]
[336854812,1725215441678,-500.0,0.00024657,2]
[336854813,1725215441687,-500.0,0.00024657,2]
[336854814,1725215441697,-500.0,0.00024657,2]
[336854815,1725215441706,-500.0,0.00024657,2]
[336854816,1725215441717,-500.0,0.00024657,2]
[336854817,1725215441727,-500.0,0.00024657,2]
[336854818,1725215441737,-500.0,0.00024657,2]
[336854819,1725215441747,-562.94,0.00024657,2]
[336854820,1725215441756,-500.0,0.00024657,2]
[336854821,1725215441766,-500.0,0.00024657,2]
[336854822,1725215441776,-500.0,0.00024657,2]
[336854823,1725215441786,-500.0,0.00024657,2]
[336854824,1725215441796,-500.0,0.00024657,2]
[336854825,1725215441806,-500.0,0.00024657,2]
[336854826,1725215441816,-500.0,0.00024657,2]
[336854827,1725215441826,-500.0,0.00024657,2]
[336854828,1725215441835,-935.11,0.00024657,2]
[336854829,1725215441844,-500.0,0.00024657,2]
[336854830,1725215441854,-500.0,0.00024657,2]
[336854831,1725215441864,-500.0,0.00024657,2]
[336854832,1725215441875,-500.0,0.00024657,2]
[336854833,1725215441886,-500.0,0.00024657,2]
[336854834,1725215441896,-500.0,0.00024657,2]
[336854835,1725215441906,-500.0,0.00024657,2]
[336854836,1725215441920,-500.0,0.00024657,2]
[336854837,1725215441929,-502.620519,0.00024657,2]
[336854838,1725215441939,-500.0,0.00024657,2]
[336854839,1725215441949,-500.0,0.00024657,2]
[336854840,1725215441959,-500.0,0.00024657,2]
[336854841,1725215441969,-500.0,0.00024657,2]
[336854842,1725215441979,-500.0,0.00024657,2]
[336854843,1725215441988,-500.0,0.00024657,2]
[336854844,1725215441997,-500.0,0.00024657,2]
[336854845,1725215442007,-449.62172856,0.00024657,2]
[336854846,1725215442016,-3222.16,0.00024657,2]
[336854847,1725215442026,-500.0,0.00024657,2]
[336854848,1725215442036,-500.0,0.00024657,2]
[336854849,1725215442045,-503.56403588,0.00024657,2]
[336854850,1725215442055,-500.0,0.00024657,2]
[336854851,1725215442064,-500.96254311,0.00024657,2]
[336854852,1725215442074,-500.0,0.00024657,2]
[336854853,1725215442083,-500.0,0.00024657,2]
[336854854,1725215442092,-500.0,0.00024657,2]
[336854855,1725215442102,-500.0,0.00024657,2]
[336854856,1725215442111,-500.0,0.00024657,2]
[336854857,1725215442121,-500.0,0.00024657,2]
[336854858,1725215442130,-673.69,0.00024657,2]
[336854859,1725215442140,-500.0,0.00024657,2]
[336854860,1725215442149,-500.0,0.00024657,2]
[336854861,1725215442160,-500.0,0.00024657,2]
[336854862,1725215442169,-500.0,0.00024657,2]
[336854863,1725215442179,-500.0,0.00024657,2]
[336854864,1725215442188,-667.92,0.00024657,2]
[336854865,1725215442198,-500.0,0.00024657,2]
[336854866,1725215442208,-500.0,0.00024657,2]
[336854867,1725215442218,-500.0,0.00024657,2]
[336854868,1725215442227,-500.0,0.00024657,2]
[336854869,1725215442236,-500.0,0.00024657,2]
[336854870,1725215442246,-503.01384065,0.00024657,2]
[336854871,1725215442255,-500.0,0.00024657,2]
[336854872,1725215442264,-1213.8,0.00024657,2]
[336854873,1725215442274,-758.25,0.00024657,2]
[336854874,1725215442284,-504.4578658,0.00024657,2]
[336854875,1725215442293,-500.0,0.00024657,2]
[336854876,1725215442303,-500.0,0.00024657,2]
[336854877,1725215442312,-500.0,0.00024657,2]
[336854878,1725215442321,-500.0,0.00024657,2]
[336854879,1725215442330,-500.0,0.00024657,2]
[336854880,1725215442340,-500.0,0.00024657,2]
[336854881,1725215442349,-625.34,0.00024657,2]
[336854882,1725215442359,-500.0,0.00024657,2]
[336854883,1725215442368,-500.0,0.00024657,2]
[336854885,1725215442377,-500.0,0.00024657,2]
[336854886,1725215442386,-584.5252583,0.00024657,2]
[336854887,1725215442395,-500.0,0.00024657,2]
[336854888,1725215442404,-500.0,0.00024657,2]
[336854889,1725215442417,-500.0,0.00024657,2]
[336854890,1725215442427,-500.0,0.00024657,2]
[336854891,1725215442436,-683.92,0.00024657,2]
[336854892,1725215442447,-500.0,0.00024657,2]
[336854893,1725215442456,-607.62,0.00024657,2]
[336854894,1725215442466,-500.0,0.00024657,2]
[336854895,1725215442475,-500.0,0.00024657,2]
[336854897,1725215442484,-674.08,0.00024657,2]
[336854899,1725215442494,-500.0,0.00024657,2]
[336854901,1725215442503,-500.0,0.00024657,2]
[336854902,1725215442512,-500.0,0.00024657,2]
[336854904,1725215442521,-500.0,0.00024657,2]
[336854906,1725215442531,-500.0,0.00024657,2]
[336854908,1725215442541,-533.86,0.00024657,2]
[336854909,1725215442550,-500.0,0.00024657,2]
[336854911,1725215442563,-500.73494028,0.00024657,2]
[336854912,1725215442573,-500.0,0.00024657,2]
[336854914,1725215442582,-500.0,0.00024657,2]
[336854916,1725215442591,-500.0,0.00024657,2]
[336854917,1725215442602,-500.0,0.00024657,2]
[336854918,1725215442611,-504.30308324,0.00024657,2]
[336854919,1725215442621,-500.0,0.00024657,2]
[336854920,1725215442630,-500.0,0.00024657,2]
[336854921,1725215442639,-500.0,0.00024657,2]
[336854922,1725215442649,-500.0,0.00024657,2]
[336854923,1725215442663,-500.0,0.00024657,2]
[336854924,1725215442673,-500.0,0.00024657,2]
[336854925,1725215442682,-500.0,0.00024657,2]
[336854926,1725215442691,-500.0,0.00024657,2]
[336854927,1725215442701,-500.0,0.00024657,2]
[336854928,1725215442710,-500.0,0.00024657,2]
[336854929,1725215442719,-500.0,0.00024657,2]
[336854930,1725215442728,-500.0,0.00024657,2]
[336854931,1725215442737,-500.0,0.00024657,2]
[336854932,1725215442747,-500.0,0.00024657,2]
[336854933,1725215442757,-504.55853373,0.00024657,2]
[336854934,1725215442767,-500.0,0.00024657,2]
[336854935,1725215442776,-500.0,0.00024657,2]
[336854936,1725215442785,-205.2154164,0.00024657,2]
[336854937,1725215442795,-662.7,0.00024657,2]
[336854938,1725215442804,-417.32387967,0.00024657,2]
[336854939,1725215442814,-640.46,0.00024657,2]
[336854940,1725215442823,-500.0,0.00024657,2]
[336854941,1725215442831,-500.0,0.00024657,2]
[336854942,1725215442841,-500.0,0.00024657,2]
[336854943,1725215442850,-500.0,0.00024657,2]
[336854944,1725215442859,-170.48473044,0.00024657,2]
[336854945,1725215442869,-500.0,0.00024657,2]
[336854946,1725215442878,-500.0,0.00024657,2]
[336854947,1725215442887,-500.0,0.00024657,2]
[336854948,1725215442897,-500.0,0.00024657,2]
[336854949,1725215442907,-500.0,0.00024657,2]
[336854950,1725215442924,-500.0,0.00024657,2]
[336854951,1725215442938,-500.0,0.00024657,2]
[336854952,1725215442948,-1209.49,0.00024657,2]
[336854953,1725215442957,-500.0,0.00024657,2]
[336854954,1725215442966,-500.0,0.00024657,2]
[336854955,1725215442976,-500.0,0.00024657,2]
[336854956,1725215442985,-500.0,0.00024657,2]
[336854957,1725215442995,-1015.74,0.00024657,2]
[336854958,1725215443004,-503.1577691,0.00024657,2]
[336854959,1725215443013,-501.18504295,0.00024657,2]
[336854960,1725215443024,-500.0,0.00024657,2]
[336854961,1725215443033,-751.25,0.00024657,2]
[336854962,1725215443043,-500.0,0.00024657,2]
[336854963,1725215443053,-772.03,0.00024657,2]
[336854964,1725215443062,-555.28,0.00024657,2]
[336854965,1725215443072,-500.0,0.00024657,2]
[336854966,1725215443081,-1110.68,0.00024657,2]
[336854967,1725215443091,-500.0,0.00024657,2]
[336854968,1725215443100,-500.0,0.00024657,2]
[336854969,1725215443110,-500.0,0.00024657,2]
[336854970,1725215443119,-500.0,0.00024657,2]
[336854971,1725215443129,-500.0,0.00024657,2]
[336854972,1725215443138,-500.0,0.00024657,2]
[336854974,1725215443148,-500.0,0.00024657,2]
[336854976,1725215443157,-500.0,0.00024657,2]
[336854978,1725215443168,-1758.27,0.00024657,2]
[336854980,1725215443177,-500.0,0.00024657,2]
[336854981,1725215443187,-500.0,0.00024657,2]
[336854982,1725215443197,-500.0,0.00024657,2]
[336854983,1725215443207,-500.0,0.00024657,2]
[336854984,1725215443217,-5517.21,0.00024657,2]
[336854985,1725215443226,-500.0,0.00024657,2]
[336854986,1725215443236,-500.0,0.00024657,2]
[336854987,1725215443247,-2240.32,0.00024657,2]
[336854988,1725215443256,-500.0,0.00024657,2]
[336854989,1725215443265,-500.0,0.00024657,2]
[336854990,1725215443274,-501.53762631,0.00024657,2]
[336854991,1725215443284,-984.79,0.00024657,2]
[336854992,1725215443293,-500.0,0.00024657,2]
[336854993,1725215443302,-1783.27,0.00024657,2]
[336854994,1725215443312,-500.0,0.00024657,2]
[336854995,1725215443322,-500.0,0.00024657,2]
[336854996,1725215443331,-505.35678504,0.00024657,2]
[336854997,1725215443341,-500.0,0.00024657,2]
[336854998,1725215443351,-2629.02,0.00024657,2]
[336854999,1725215443361,-1629.43,0.00024657,2]
[336855000,1725215443370,-506.33,0.00024657,2]
[336855001,1725215443379,-1242.97,0.00024657,2]
[336855002,1725215443389,-500.0,0.00024657,2]
[336855003,1725215443398,-500.0,0.00024657,2]
[336855004,1725215443408,-1079.32,0.00024657,2]
[336855005,1725215443428,-500.0,0.00024657,2]
[336855006,1725215443438,-500.0,0.00024657,2]
[336855007,1725215443448,-500.0,0.00024657,2]
[336855008,1725215443458,-500.0,0.00024657,2]
[336855009,1725215443467,-500.0,0.00024657,2]
[336855010,1725215443477,-500.0,0.00024657,2]
[336855011,1725215443487,-721.57,0.00024657,2]
[336855012,1725215443496,-1619.62,0.00024657,2]
[336855013,1725215443505,-500.0,0.00024657,2]
[336855014,1725215443514,-500.0,0.00024657,2]
[336855015,1725215443523,-585.54,0.00024657,2]
[336855016,1725215443533,-1470.2,0.00024657,2]
[336855017,1725215443543,-888.35,0.00024657,2]
[336855018,1725215443553,-500.0,0.00024657,2]
[336855019,1725215443563,-500.0,0.00024657,2]
[336855020,1725215443574,-500.0,0.00024657,2]
[336855021,1725215443584,-500.0,0.00024657,2]
[336855022,1725215443593,-527.65,0.00024657,2]
[336855023,1725215443602,-1076.25,0.00024657,2]
[336855024,1725215443613,-2023.14,0.00024657,2]
[336855025,1725215443622,-2074.7,0.00024657,2]
[336855026,1725215443632,-500.0,0.00024657,2]
[336855027,1725215443643,-500.0,0.00024657,2]
[336855028,1725215443652,-1359.2,0.00024657,2]
[336855029,1725215443669,-594.96,0.00024657,2]
[336855030,1725215443678,-500.0,0.00024657,2]
[336855031,1725215443688,-1295.16,0.00024657,2]
[336855032,1725215443697,-500.0,0.00024657,2]
[336855033,1725215443707,-500.0,0.00024657,2]
[336855034,1725215443841,-500.0,0.00024657,2]
[336855035,1725215443851,-1896.14,0.00024657,2]
[336855036,1725215443861,-500.0,0.00024657,2]
[336855037,1725215443870,-500.0,0.00024657,2]
[336855038,1725215443879,-742.76,0.00024657,2]
[336855039,1725215443889,-500.0,0.00024657,2]
[336855040,1725215443898,-544.43,0.00024657,2]
[336855041,1725215443907,-500.0,0.00024657,2]
[336855042,1725215443918,-500.0,0.00024657,2]
[336855043,1725215443928,-500.0,0.00024657,2]
[336855044,1725215443937,-500.0,0.00024657,2]
[336855045,1725215443947,-500.0,0.00024657,2]
[336855046,1725215443957,-155.00327664,0.00024657,2]
[336855047,1725215443966,-500.0,0.00024657,2]
[336855048,1725215443975,-500.0,0.00024657,2]
[336855049,1725215443984,-1704.95,0.00024657,2]
[336855050,1725215443994,-2275.91,0.00024657,2]
[336855051,1725215444004,-763.9,0.00024657,2]
[336855052,1725215444014,-500.0,0.00024657,2]
[336855053,1725215444023,-500.0,0.00024657,2]
[336855054,1725215444032,-500.0,0.00024657,2]
[336855055,1725215444042,-500.0,0.00024657,2]
[336855056,1725215444051,-704.69,0.00024657,2]
[336855057,1725215444060,-500.0,0.00024657,2]
[336855058,1725215444070,-13304.05,0.00024657,2]
[336855059,1725215444079,-500.0,0.00024657,2]
[336855060,1725215444088,-500.0,0.00024657,2]
[336855061,1725215444098,-500.0,0.00024657,2]
[336855062,1725215444107,-699.49,0.00024657,2]
[336855063,1725215444117,-2354.18,0.00024657,2]
[336855064,1725215444126,-500.0,0.00024657,2]
[336855065,1725215444135,-1717.48,0.00024657,2]
[336855066,1725215444144,-1650.55,0.00024657,2]
[336855067,1725215444154,-1724.01,0.00024657,2]
[336855068,1725215444166,-500.0,0.00024657,2]
[336855069,1725215444175,-500.0,0.00024657,2]
[336855070,1725215444184,-2159.25,0.00024657,2]
[336855071,1725215444194,-500.0,0.00024657,2]
[336855072,1725215444203,-500.0,0.00024657,2]
[336855073,1725215444212,-1096.4,0.00024657,2]
[336855074,1725215444221,-500.0,0.00024657,2]
[336855075,1725215444231,-779.61,0.00024657,2]
[336855076,1725215444240,-500.0,0.00024657,2]
[336855077,1725215444250,-500.0,0.00024657,2]
[336855078,1725215444259,-1346.63,0.00024657,2]
[336855079,1725215444268,-2785.55,0.00024657,2]
[336855080,1725215444277,-710.04,0.00024657,2]
[336855081,1725215444286,-500.0,0.00024657,2]
[336855082,1725215444295,-500.0,0.00024657,2]
[336855083,1725215444305,-500.0,0.00024657,2]
[336855084,1725215444316,-500.0,0.00024657,2]
[336855085,1725215444325,-500.0,0.00024657,2]
[336855086,1725215444334,-694.54,0.00024657,2]
[336855087,1725215444344,-501.72252859,0.00024657,2]
[336855088,1725215444353,-500.0,0.00024657,2]
[336855089,1725215444362,-500.0,0.00024657,2]
[336855090,1725215444372,-651.91,0.00024657,2]
[336855091,1725215444381,-500.0,0.00024657,2]
[336855092,1725215444390,-500.0,0.00024657,2]
[336855093,1725215444400,-680.75,0.00024657,2]
[336855094,1725215444411,-1217.07,0.00024657,2]
[336855095,1725215444423,-500.0,0.00024657,2]
[336855096,1725215444432,-1570.55,0.00024657,2]
[336855097,1725215444442,-1068.74,0.00024657,2]
[336855098,1725215444451,-732.75,0.00024657,2]
[336855099,1725215444461,-500.0,0.00024657,2]
[336855100,1725215444471,-1050.97,0.00024657,2]
[336855101,1725215444481,-500.0,0.00024657,2]
[336855102,1725215444491,-500.0,0.00024657,2]
[336855103,1725215444501,-500.0,0.00024657,2]
[336855104,1725215444511,-500.0,0.00024657,2]
[336855105,1725215444521,-500.0,0.00024657,2]
[336855106,1725215444531,-572.92375437,0.00024657,2]
[336855107,1725215444540,-500.0,0.00024657,2]
[336855108,1725215444551,-500.0,0.00024657,2]
[336855109,1725215444564,-500.0,0.00024657,2]
[336855110,1725215444574,-500.0,0.00024657,2]
[336855111,1725215444584,-500.0,0.00024657,2]
[336855112,1725215444594,-504.31194058,0.00024657,2]
[336855113,1725215444603,-531.4484865,0.00024657,2]
[336855114,1725215444612,-500.0,0.00024657,2]
[336855115,1725215444621,-500.0,0.00024657,2]